fUSD/lending_fUSD_20260105
["ID","MTS","AMOUNT","RATE_DAILY","PERIOD"]
[400452516,1767573041419,-370.90702962,0.000179,2]
[400452517,1767573041427,-15582.9226001,0.000179,2]
[400452518,1767573041437,-1370.47270556,0.000179,2]
[400452519,1767573041447,-937.0,0.000179,2]
[400452520,1767573041456,-2710.14,0.00017906,2]
[400452521,1767573041465,-928.44563,0.0001791,2]
[400452522,1767573041475,-350.0,0.0001796,2]
[400452523,1767573041489,-161062.8679388,0.0001798,2]
[400452524,1767573041498,-418184.1311028,0.0001798,2]
[400452525,1767573041509,-12907.3906865,0.0001798,2]
[400452526,1767573041520,-193981.815323,0.0001798,2]
[400452527,1767573041529,-258797.2149265,0.0001798,2]
[400452528,1767573041538,-56272.4052561,0.0001798,2]
[400452529,1767573041548,-571.311049,0.0001798,2]
[400452530,1767573041558,-571.311049,0.0001798,2]
[400452531,1767573041567,-571.311049,0.0001798,2]
[400452532,1767573041577,-571.311049,0.0001798,2]
[400452533,1767573041587,-3713.5860257,0.00017985,2]
[400452534,1767573041596,-350.0,0.0001799,2]
[400452535,1767573041608,-342.0,0.00017993,2]
[400452536,1767573041617,-399.85367972,0.00017998,2]
[400452537,1767573041626,-500.0,0.00017999,2]
[400452538,1767573041635,-504.75468002,0.00017999,2]
[400452539,1767573041644,-14280.9123773,0.00017999,2]
[400452540,1767573041654,-222.98699471,0.00017999,2]
[400452541,1767573041663,-300.0,0.00017999,2]
[400452542,1767573041673,-159373.41206464,0.00018,2]
[400452543,1767573041686,-465.65681203,0.00018,2]
[400452544,1767573041696,-34021.95570156,0.00018,2]
[400452546,1767573044171,-917.4,0.00015272,2]
[400452547,1767573044183,-3187.6224,0.00015272,2]
[400452548,1767573044193,-10217.61384082,0.00018,2]
[400452552,1767573046010,-158.66877958,0.00016587,2]
[400452553,1767573046019,-98706.64005062,0.00018,2]
[400452554,1767573046031,-18869.85230603,0.00018,2]
[400452555,1767573046115,-2973.24924164,0.00018,2]
[400452558,1767573046126,-341.95363094,0.00018,2]
[400452560,1767573046139,-23260.02431834,0.00018,2]
[400452562,1767573046151,-35739.97568166,0.00018,2]
[400452564,1767573046162,-1474.17748769,0.00018,2]
[400452566,1767573046173,-1093.57675225,0.00018,2]
[400452576,1767573098750,859.19,0.00024859,120]
[400452605,1767573236779,500.0,0.00043551,60]
[400452705,1767573469523,500.0,0.00043551,120]
[400452731,1767573586420,160.9,0.00012131,2]
[400452751,1767574094739,158.0,0.000328,120]
[400452760,1767574175619,151.0,0.00043547,120]
[400452761,1767574176260,156.587,0.00043547,120]
[400452762,1767574176941,162.380719,0.00043547,120]
[400452763,1767574177745,168.3888056,0.00043547,120]
[400452764,1767574178646,174.61919141,0.00043547,120]
[400452765,1767574178988,181.08010149,0.00043547,120]
[400452766,1767574179612,187.78006525,0.00043547,120]
[400452767,1767574180221,187.78006525,0.00043547,120]
[400452768,1767574195898,-584.16143976,0.00014972,2]
[400452770,1767574200446,-306.44053824,0.00014972,2]
[400452771,1767574207250,-282.97161181,0.00014971,2]
[400452772,1767574211326,-236.34093269,0.00014971,2]
[400452773,1767574212689,-680.6874555,0.00014971,2]
[400452774,1767574212718,-300.0,0.00014971,2]
[400452775,1767574214879,-300.0,0.00014972,2]
[400452776,1767574214909,-113.41327057,0.00014972,2]
[400452777,1767574217691,-136.58672943,0.00014972,2]
[400452778,1767574217733,-47.43691726,0.00014972,2]
[400452781,1767574220375,-250.0,0.00014972,2]
[400452782,1767574225526,-181.00947801,0.00014972,2]
[400452783,1767574227090,-318.99052199,0.00014972,2]
[400452784,1767574230665,161.81,0.000328,120]
[400452788,1767574232034,-2740.89999996,0.00014972,2]
[400452789,1767574232087,-344.17171453,0.00014972,2]
[400452790,1767574232099,-614.3744897,0.00014972,2]
[400452791,1767574232111,-1288.12252,0.00014972,2]
[400452792,1767574232123,-23848.19917246,0.00014972,2]
[400452793,1767574232134,-1238.93284746,0.00014972,2]
[400452794,1767574232150,-661.42405583,0.00014972,2]
[400452795,1767574232163,-346.84803172,0.00014972,2]
[400452796,1767574232175,-3247.04522264,0.00014972,2]
[400452797,1767574232196,-1060.77904205,0.00014972,2]
[400452798,1767574232207,-884.60538657,0.00014972,2]
[400452799,1767574232219,-480.71,0.00014972,2]
[400452800,1767574232231,-556.64674786,0.00014972,2]
[400452807,1767574238095,-398.96585399,0.00014972,2]
[400452808,1767574238106,-620.0000001,0.00014972,2]
[400452810,1767574239247,-510.0107198,0.00014972,2]
[400452811,1767574239259,-3180.43028362,0.00014972,2]
[400452812,1767574239274,-11689.15710098,0.00014972,2]
[400452813,1767574239286,-583.25931195,0.00014972,2]
[400452814,1767574239301,-13441.38720352,0.00014972,2]
[400452815,1767574239310,-300.0,0.00015052,2]
[400452816,1767574239320,-307.69123084,0.00015052,2]
[400452817,1767574239330,-250.0,0.00015052,2]
[400452818,1767574239340,-2500.0,0.00015072,2]
[400452819,1767574239350,-1057.97,0.00015086,2]
[400452820,1767574239360,-2978.33687262,0.0001516,2]
[400452821,1767574239370,-2249.0339847,0.00015171,2]
[400452822,1767574239380,-161.47509803,0.00015171,2]
[400452823,1767574239390,-500.0,0.00015171,2]
[400452824,1767574239399,-158.66877958,0.0001526,2]
[400452825,1767574239410,-439.19135351,0.00015359,2]
[400452826,1767574239419,-4976.25463588,0.0001536,2]
[400452829,1767574239431,-4822.19536412,0.0001536,2]
[400452832,1767574239440,-18449.18186045,0.0001536,2]
[400452834,1767574239451,-63881.20813955,0.0001536,2]
[400452835,1767574239460,-9338.87,0.0001536,2]
[400452838,1767574239470,-9999.99,0.0001536,2]
[400452840,1767574239482,-162.35417181,0.0001536,3]
[400452841,1767574239492,-500.0,0.00015373,2]
[400452843,1767574239501,-1000.0,0.00015373,2]
[400452845,1767574239511,-150.99,0.00015373,2]
[400452847,1767574239520,-9999.99,0.00015373,2]
[400452849,1767574239529,-2978.33687254,0.00015464,2]
[400452851,1767574239538,-500.0,0.00015471,2]
[400452853,1767574239547,-2249.03398464,0.00015474,2]
[400452855,1767574239557,-3707.7344679,0.00015567,2]
[400452857,1767574239566,-2978.33687254,0.00015769,2]
[400452859,1767574239575,-2249.03398464,0.00015777,2]
[400452861,1767574239585,-161.47509802,0.00015853,2]
[400452863,1767574239595,-1000.0,0.00015921,2]
[400452865,1767574239605,-193.3881944,0.00015973,2]
[400452867,1767574239614,-500.0,0.00015973,2]
[400452870,1767574239623,-500.0,0.00015973,2]
[400452872,1767574239632,-491.73851592,0.00015973,2]
[400452874,1767574239642,-500.0,0.00015973,2]
[400452876,1767574239651,-166.66,0.00016021,2]
[400452878,1767574239661,-999.0,0.00016024,3]
[400452881,1767574239674,-2978.33687254,0.00016073,2]
[400452883,1767574239684,-2249.03398464,0.00016081,2]
[400452885,1767574239699,-151.0,0.00016093,2]
[400452887,1767574239708,-151.08,0.00016094,2]
[400452888,1767574239717,-151.0,0.00016094,2]
[400452890,1767574239726,-151.0,0.00016094,2]
[400452893,1767574239739,-151.0,0.00016095,2]
[400452895,1767574239749,-151.0,0.00016095,2]
[400452896,1767574239759,-3741.34,0.00016161,2]
[400452899,1767574239770,-5169.0,0.00016223,2]
[400452901,1767574239779,-166.66,0.00016359,2]
[400452903,1767574239788,-2978.33687254,0.00016378,2]
[400452905,1767574239797,-2249.03398464,0.00016384,2]
[400452907,1767574239807,-420.0,0.00016385,2]
[400452909,1767574239816,-500.0,0.00016438,2]
[400452911,1767574239826,-361.34957769,0.00016438,2]
[400452913,1767574239836,-801.86347734,0.00016438,2]
[400452915,1767574239845,-1680.0,0.00016468,2]
[400452917,1767574239854,-300.0,0.00016468,2]
[400452919,1767574239864,-922.1475348,0.00016468,2]
[400452921,1767574239873,-250.0,0.00016468,2]
[400452923,1767574239884,-500.0,0.00016468,2]
[400452925,1767574239893,-293.53,0.0001648,2]
[400452927,1767574239902,-1000.0,0.00016521,2]
[400452929,1767574239912,-313.93419392,0.00016521,2]
[400452931,1767574239921,-1000.0,0.00016521,2]
[400452933,1767574239930,-9598.94,0.00016521,2]
[400452935,1767574239940,-161.47509802,0.00016536,2]
[400452937,1767574239949,-859.19,0.00016573,2]
[400452939,1767574239958,-2500.0,0.00016578,2]
[400452941,1767574239967,-195.0,0.00016578,2]
[400452943,1767574239976,-300.0,0.00016578,2]
[400452945,1767574239985,-195.0,0.00016578,2]
[400452947,1767574239995,-2978.33687254,0.00016682,2]
[400452949,1767574240008,-2249.03398464,0.00016687,2]
[400452951,1767574240018,-166.66,0.00016696,2]
[400452954,1767574240037,-165.03217022,0.00016883,2]
[400452957,1767574240048,-2978.33687254,0.00016987,2]
[400452960,1767574240059,-2249.03398464,0.0001699,2]
[400452962,1767574240071,-166.66,0.00017033,2]
[400452964,1767574240082,-500.0,0.00017068,2]
[400452966,1767574240094,-200.0,0.00017099,2]
[400452968,1767574240109,-207.4,0.00017099,2]
[400452970,1767574240120,-215.0738,0.00017099,2]
[400452972,1767574240131,-223.0315306,0.00017099,2]
[400452975,1767574240141,-231.28369723,0.00017099,2]
[400452978,1767574240151,-239.84119403,0.00017099,2]
[400452981,1767574240161,-248.71531821,0.00017099,2]
[400452984,1767574240171,-257.91778498,0.00017099,2]
[400452987,1767574240181,-267.46074303,0.00017099,2]
[400452990,1767574240191,-277.35679052,0.00017099,2]
[400452993,1767574240201,-200.0,0.00017174,2]
[400452995,1767574240212,-161.47509802,0.00017218,2]
[400452997,1767574240223,-168.0,0.00017279,2]
[400452999,1767574240235,-2978.33687254,0.00017291,2]
[400453001,1767574240251,-2249.03398464,0.00017294,2]
[400453003,1767574240263,-1000.0,0.00017295,2]
[400453004,1767574240274,-832.0,0.0001736,2]
[400453006,1767574240285,-484.0,0.00017366,2]
[400453007,1767574240296,-166.66,0.0001737,2]
[400453008,1767574240307,-348.73,0.00017424,2]
[400453009,1767574240318,-2978.33687254,0.00017596,2]
[400453010,1767574240328,-2249.03398464,0.00017597,2]
[400453011,1767574240340,-484.0,0.00017625,2]
[400453012,1767574240352,-271.31062901,0.0001764,2]
[400453013,1767574240363,-828.0,0.0001768,2]
[400453014,1767574240374,-1000.0,0.000177,2]
[400453015,1767574240386,-166.66,0.00017708,2]
[400453016,1767574240397,-1000.0,0.00017715,2]
[400453017,1767574240408,-168.0,0.00017737,2]
[400453018,1767574240419,-1000.0,0.00017766,2]
[400453019,1767574240430,-665.71,0.00017786,2]
[400453020,1767574240441,-1000.0,0.000178,2]
[400453021,1767574240452,-500.0,0.00017808,2]
[400453022,1767574240463,-504.75468002,0.00017808,2]
[400453023,1767574240473,-1000.0,0.00017808,2]
[400453024,1767574240483,-1000.0,0.00017808,2]
[400453025,1767574240493,-1000.0,0.00017808,2]
[400453026,1767574240502,-1000.0,0.00017808,2]
[400453027,1767574240512,-1076.95721268,0.00017808,2]
[400453028,1767574240522,-380.86560299,0.00017808,2]
[400453029,1767574240533,-500.0,0.00017808,2]
[400453030,1767574240544,-500.0,0.00017808,2]
[400453031,1767574240555,-504.23547705,0.00017808,2]
[400453032,1767574240566,-574.40235,0.0001782,2]
[400453033,1767574240577,-574.40236,0.0001782,2]
[400453034,1767574240589,-198.495,0.00017824,2]
[400453035,1767574240600,-574.40236,0.0001783,2]
[400453036,1767574240610,-2572.0,0.00017836,2]
[400453037,1767574240621,-574.40236,0.0001786,2]
[400453038,1767574240631,-574.40236,0.0001788,2]
[400453039,1767574240643,-6529.61527767,0.00017891,3]
[400453040,1767574240658,-328.88666808,0.00017891,3]
[400453041,1767574240671,-1667.95075,0.00017891,3]
[400453042,1767574240735,618.80442051,0.00014971,2]
[400453043,1767574240755,-1218.70305801,0.00017891,3]
[400453044,1767574240768,-1256.04485497,0.00017891,3]
[400453045,1767574240780,-397.61017492,0.00017891,3]
[400453046,1767574240792,-922.00465163,0.00017891,3]
[400453047,1767574240805,-1471.526405,0.00017891,3]
[400453048,1767574240819,-254.35801595,0.00017891,3]
[400453049,1767574240832,-430.47951996,0.00017891,3]
[400453050,1767574240845,-1901.96,0.00017891,3]
[400453051,1767574240866,-919.71294345,0.0001526,2]
[400453052,1767574240883,-88008.61745655,0.0001526,2]
[400453053,1767574240893,-8620.86062381,0.00017891,3]
[400453054,1767574240903,-10000.0,0.000179,2]
[400453055,1767574240914,-25000.0,0.000179,3]
[400453056,1767574240924,-1260.16160263,0.000179,3]
[400453057,1767574240935,-1000.0,0.000179,2]
[400453058,1767574240945,-161.47509802,0.000179,2]
[400453059,1767574240955,-2249.03398464,0.000179,2]
[400453060,1767574240966,-158.0,0.000179,2]
[400453061,1767574240977,-158.0,0.000179,2]
[400453062,1767574240987,-1370.47270556,0.000179,2]
[400453063,1767574240998,-370.90702962,0.000179,2]
[400453064,1767574241009,-15582.9226001,0.000179,2]
[400453065,1767574241019,-14388.71226278,0.000179,2]
[400453066,1767574241030,-2978.33687254,0.000179,2]
[400453067,1767574241044,-1669.54567515,0.000179,2]
[400453068,1767574241056,-1000.0,0.0001791,2]
[400453069,1767574241067,-1000.0,0.0001791,2]
[400453070,1767574241079,-1000.0,0.0001791,2]
[400453071,1767574241090,-1000.0,0.0001791,2]
[400453072,1767574241101,-1000.0,0.0001791,2]
[400453073,1767574241113,-1000.0,0.0001791,2]
[400453074,1767574241124,-1000.0,0.0001791,2]
[400453075,1767574241134,-1000.0,0.0001791,2]
[400453076,1767574241145,-1000.0,0.0001791,2]
[400453077,1767574241155,-1000.0,0.0001791,2]
[400453078,1767574241167,-601.196,0.0001791,2]
[400453079,1767574241176,-574.40235,0.0001791,2]
[400453080,1767574241186,-1000.0,0.00017912,2]
[400453081,1767574241195,-587.0,0.00017934,2]
[400453082,1767574241205,-1000.0,0.00017943,2]
[400453083,1767574241214,-730.0,0.00017973,2]
[400453084,1767574241224,-1518.5259027,0.00017973,2]
[400453085,1767574241234,-13057.3900171,0.00017973,2]
[400453086,1767574241244,-855658.8254977,0.00017973,2]
[400453087,1767574241253,-124192.2742996,0.00017973,2]
[400453088,1767574241264,-2535.4805212,0.00017973,2]
[400453089,1767574241275,-3355.5845748,0.00017973,2]
[400453090,1767574241286,-13235.2448551,0.00017973,2]
[400453091,1767574241297,-21496.9818825,0.00017973,2]
[400453092,1767574241308,-422.6917264,0.0001798,2]
[400453093,1767574241318,-300.0,0.00017999,2]
[400453094,1767574241328,-371811.53152899,0.00018,2]
[400453095,1767574241586,-1.7e-07,0.00018,2]
[400453106,1767574243675,-929199.99999904,0.00018,2]
[400453107,1767574243690,-785.0,0.00018,2]
[400453108,1767574243703,-4046.9850555,0.00018,2]
[400453109,1767574244411,-4521.05176533,0.00018,2]
[400453110,1767574244424,-316.16713008,0.00018,2]
[400453111,1767574244437,-1242.14816729,0.00018,2]
[400453112,1767574244464,-2020.2,0.00018,2]
[400453117,1767574246248,-49435.08991651,0.00018,2]
[400453118,1767574246260,-340.43642309,0.00018,2]
[400453119,1767574246272,-396.22009028,0.00018,2]
[400453120,1767574246402,-190.54888131,0.00018,2]
[400453121,1767574246457,-400.91167856,0.00018,2]
[400453125,1767574325011,300.0,0.00043547,30]
[400453126,1767574325612,300.0,0.00043547,30]
[400453129,1767574345920,-470.60357453,0.00014872,2]
[400453130,1767574379302,776.85,0.00013699,2]
[400453131,1767574381259,300.0,0.00014871,2]
[400453132,1767574393280,689.0,0.00014871,2]
[400453140,1767574501194,1200.0,0.00014871,2]
[400453141,1767574501300,300.0,0.00014871,2]
[400453143,1767574621189,300.0,0.00014871,2]
[400453144,1767574641767,500.0,0.00014871,2]
[400453145,1767574641822,500.0,0.00014871,2]
[400453146,1767574641873,319.97692662,0.00014871,2]
[400453147,1767574657818,307.43394746,0.00014871,2]
[400453148,1767574675756,2500.0,0.00014772,2]
[400453149,1767574681255,300.0,0.00014871,2]
[400453151,1767574741434,300.0,0.00014871,2]
[400453152,1767574801146,300.0,0.00014871,2]
[400453153,1767574801186,300.0,0.00014871,2]
[400453154,1767574801237,1106.74912592,0.00014871,2]
[400453155,1767574801261,93.25087408,0.00014871,2]
[400453156,1767574803747,273.0,0.00014872,2]
[400453159,1767574894256,158.796,0.00014575,2]
[400453160,1767574921529,300.0,0.00014871,2]
[400453164,1767574956497,447.70509384,0.00043539,30]
[400453165,1767574981260,300.0,0.00014871,2]
[400453166,1767575000576,215.20376322,0.00014871,2]
[400453167,1767575006511,343.86161671,0.00043539,120]
[400453168,1767575034704,224.9033985,0.00014772,2]
[400453169,1767575041246,300.0,0.00014871,2]
[400453170,1767575101192,300.0,0.00014871,2]
[400453171,1767575101383,1200.0,0.00014871,2]
[400453172,1767575101420,300.0,0.00014871,2]
[400453174,1767575161266,300.0,0.00014871,2]
[400453176,1767575195830,150.64263425,0.00014871,2]
[400453177,1767575221345,300.0,0.00014871,2]
[400453179,1767575281401,300.0,0.00014871,2]
[400453180,1767575290578,297.83368729,0.00014772,2]
[400453181,1767575341397,300.0,0.00014871,2]
[400453182,1767575368554,5052.63051674,0.00014772,2]
[400453183,1767575368582,10000.01,0.00014772,2]
[400453184,1767575368610,10000.01,0.00014772,2]
[400453185,1767575368638,10000.01,0.00014772,2]
[400453186,1767575368664,10000.01,0.00014772,2]
[400453187,1767575368692,10000.01,0.00014772,2]
[400453188,1767575368719,10000.01,0.00014772,2]
[400453189,1767575368745,6485.37998326,0.00014772,2]
[400453190,1767575403412,273.0,0.00014872,2]
[400453215,1767575432287,-205.28113902,0.00014872,2]
[400453217,1767575432301,-205.28113902,0.00014872,2]
[400453219,1767575432310,-250.0,0.00014946,2]
[400453221,1767575432319,-161.47509802,0.00015019,2]
[400453223,1767575432329,-89.65513416,0.0001512,2]
[400453225,1767575432341,-208.17855309,0.0001512,2]
[400453227,1767575432350,-150.07313695,0.0001536,3]
[400453230,1767575432361,-297.83368725,0.00015467,2]
[400453232,1767575432371,-297.83368725,0.00015815,2]
[400453233,1767575432380,-297.83368725,0.00016162,2]
[400453235,1767575432389,-1170.32724163,0.00016196,2]
[400453237,1767575432401,-29.67275837,0.00016196,2]
[400453239,1767575432415,-300.0,0.00016196,2]
[400453241,1767575432424,-300.0,0.00016196,2]
[400453243,1767575432434,-5615.64,0.00016197,2]
[400453245,1767575432443,-151.0,0.00016223,2]
[400453276,1767575432638,-151.0,0.00016223,2]
[400453279,1767575432701,-151.0,0.00016227,2]
[400453281,1767575432711,-151.0,0.00016227,2]
[400453283,1767575432720,-151.0,0.00016229,2]
[400453285,1767575432730,-151.0,0.00016229,2]
[400453287,1767575432739,-200.0,0.00016234,2]
[400453289,1767575432750,-4123.90647738,0.00016252,2]
[400453291,1767575432762,-544.71352262,0.00016252,2]
[400453293,1767575432771,-150.99,0.00016252,2]
[400453295,1767575432781,-3913.31,0.00016258,2]
[400453296,1767575432791,-195.0,0.00016359,2]
[400453297,1767575432800,-250.0,0.00016359,2]
[400453298,1767575432809,-250.0,0.00016359,2]
[400453299,1767575432819,-577.95503074,0.00016438,2]
[400453300,1767575432830,-245.61496926,0.00016438,2]
[400453301,1767575432839,-56.42910096,0.0001651,2]
[400453302,1767575432850,-168.4742975,0.0001651,2]
[400453303,1767575432859,-297.83368725,0.0001651,2]
[400453304,1767575432869,-234.82,0.00016632,2]
[400453305,1767575432878,-1239.19,0.00016642,2]
[400453306,1767575432887,-166.66,0.00016693,2]
[400453307,1767575432896,-823.57,0.00016712,2]
[400453308,1767575432905,-165.2,0.00016712,2]
[400453309,1767575432915,-224.90339846,0.00016857,2]
[400453310,1767575432924,-297.83368725,0.00016857,2]
[400453311,1767575432933,-728.0,0.00016857,2]
[400453312,1767575432943,-165.03217023,0.00016859,2]
[400453313,1767575432952,-823.57,0.00016986,2]
[400453314,1767575432961,-250.0,0.00017,2]
[400453315,1767575432971,-200.0,0.00017099,2]
[400453316,1767575432980,-207.4,0.00017099,2]
[400453317,1767575432989,-215.0738,0.00017099,2]
[400453318,1767575432999,-192.34920737,0.00017099,2]
[400453319,1767575433019,-150.20686254,0.0001711,6]
[400453320,1767575433030,-224.90339846,0.00017205,2]
[400453321,1767575433040,-297.83368725,0.00017205,2]
[400453322,1767575433049,-166.66,0.00017244,2]
[400453323,1767575433059,-823.57,0.0001726,2]
[400453324,1767575433070,-657.0,0.0001746,2]
[400453325,1767575433080,-823.57,0.00017534,2]
[400453326,1767575433089,-224.90339846,0.00017552,2]
[400453327,1767575433100,-297.83368725,0.00017552,2]
[400453328,1767575433110,-657.0,0.0001761,2]
[400453329,1767575433121,-271.31062902,0.0001764,2]
[400453330,1767575433130,-2936.80874513,0.00017687,2]
[400453331,1767575433144,-656.31225487,0.00017687,2]
[400453332,1767575433154,-613.0,0.00017687,2]
[400453333,1767575433165,-1329.0,0.00017687,2]
[400453334,1767575433175,-161.48,0.00017687,2]
[400453335,1767575433184,-1024.53781237,0.00017687,2]
[400453336,1767575433196,-379.46218763,0.00017687,2]
[400453337,1767575433206,-250.84781237,0.00017687,2]
[400453338,1767575433222,-182.15218763,0.00017687,2]
[400453339,1767575433232,-1265.0,0.00017687,2]
[400453340,1767575433242,-913.0,0.00017687,2]
[400453341,1767575433251,-1200.0,0.00017687,2]
[400453342,1767575433260,-4815.0,0.00017687,2]
[400453343,1767575433270,-2494.462,0.00017687,2]
[400453344,1767575433281,-657.0,0.00017696,2]
[400453345,1767575433291,-171.0,0.00017705,2]
[400453346,1767575433300,-420.0,0.00017705,2]
[400453347,1767575433309,-1680.0,0.00017793,2]
[400453348,1767575433319,-166.66,0.00017795,2]
[400453349,1767575433328,-1000.0,0.000178,2]
[400453350,1767575433337,-823.57,0.00017808,2]
[400453351,1767575433347,-601.196,0.00017808,2]
[400453352,1767575433356,-1000.0,0.00017812,2]
[400453353,1767575433367,-657.0,0.00017816,2]
[400453354,1767575433376,-928.44563,0.0001782,2]
[400453355,1767575433386,-928.44564,0.0001782,2]
[400453356,1767575433395,-928.44564,0.0001783,2]
[400453357,1767575433407,-1000.0,0.00017852,2]
[400453358,1767575433416,-928.44564,0.0001786,2]
[400453359,1767575433426,-928.44564,0.0001788,2]
[400453360,1767575433435,-15408.66448659,0.000179,3]
[400453362,1767575438385,-151.0,0.00016229,2]
[400453363,1767575438399,-103.99402538,0.00016229,2]
[400453364,1767575438417,-47.00597462,0.00016229,2]
[400453365,1767575438426,-500.0,0.00017686,2]
[400453366,1767575438436,-349.93402538,0.00017686,2]
[400453367,1767575438449,-150.06597462,0.00017686,2]
[400453368,1767575438458,-500.0,0.00017686,2]
[400453369,1767575438467,-500.0,0.00017686,2]
[400453370,1767575438477,-500.0,0.00017686,2]
[400453371,1767575438486,-342.04928613,0.00017686,2]
[400453372,1767575438500,-111.95286848,0.00017686,2]
[400453373,1767575438510,-500.0,0.00017686,2]
[400453374,1767575438520,-500.0,0.00017686,2]
[400453375,1767575438531,-500.0,0.00017686,2]
[400453376,1767575438541,-500.0,0.00017686,2]
[400453377,1767575438551,-500.0,0.00017686,2]
[400453378,1767575438561,-500.0,0.00017686,2]
[400453379,1767575438570,-500.0,0.00017686,2]
[400453380,1767575438584,-500.0,0.00017686,2]
[400453381,1767575438597,-500.0,0.00017686,2]
[400453382,1767575438608,-565.0,0.00017687,2]
[400453383,1767575438618,-9591.33551341,0.000179,3]
[400453384,1767575438628,-8108.84639545,0.000179,2]
[400453385,1767575438640,-551.09530478,0.000179,2]
[400453386,1767575438655,-1340.05829977,0.000179,2]
[400453387,1767575438669,-9881.02222644,0.000179,3]
[400453389,1767575438680,-224.90339846,0.000179,2]
[400453391,1767575438691,-1429.04294054,0.000179,2]
[400453393,1767575438702,-297.83368725,0.000179,2]
[400453395,1767575438712,-370.90702962,0.000179,2]
[400453397,1767575438724,-1370.47270556,0.000179,2]
[400453399,1767575438734,-928.44563,0.0001791,2]
[400453401,1767575438744,-57.5591907,0.0001798,2]
[400453437,1767575440736,-342.31732707,0.0001798,2]
[400453438,1767575440749,-133.1551144,0.00017986,2]
[400453439,1767575440762,-384.01607882,0.00017986,2]
[400453440,1767575440774,-1167.04502,0.00017986,2]
[400453441,1767575440789,-795533.51828748,0.00017986,2]
[400453442,1767575440801,-16078.799593,0.00017986,2]
[400453443,1767575440811,-1013.501606,0.00017986,2]
[400453444,1767575440823,-183455.7895666,0.00017986,2]
[400453445,1767575440832,-26627.1918909,0.00017986,2]
[400453446,1767575440842,-3394.5804843,0.00017986,2]
[400453447,1767575440855,-261.7409849,0.00017987,2]
[400453448,1767575440867,-222.98699471,0.00017999,2]
[400453449,1767575440877,-300.0,0.00017999,2]
[400453450,1767575440887,-482105.8926045,0.00018,2]
[400453473,1767575444179,-1707.813,0.00017687,2]
[400453474,1767575444234,-1855.96,0.00017687,2]
[400453486,1767575446324,-2983.227,0.00017687,2]
[400453487,1767575446333,-25992.87813994,0.00018,2]
[400453488,1767575446345,-31698.52604113,0.00018,2]
[400453489,1767575446357,-12356.48532603,0.00018,2]
[400453490,1767575446485,-6581.25705161,0.00018,2]
[400453491,1767575446496,-7193.83972016,0.00018,2]
[400453492,1767575446507,-3649.82327439,0.00018,2]
[400453493,1767575446540,-5865.23560611,0.00018,2]
[400453494,1767575446551,-5866.65708772,0.00018,2]
[400453495,1767575446563,-5069.05991764,0.00018,2]
[400453617,1767575475440,500.0,0.00014772,2]
[400453647,1767575940624,515.51,0.00024855,120]
[400453656,1767576430631,1122.10944191,0.00043535,31]
[400453659,1767576555086,-300.0,0.00015999,2]
[400453660,1767576555105,-56855.85848025,0.00016,4]
[400453661,1767576555128,-172.647,0.00016011,2]
[400453662,1767576555148,-166.46044872,0.00016137,2]
[400453663,1767576555168,-3216.59561103,0.000162,5]
[400453664,1767576604937,175.0,0.00043535,30]
[400453665,1767576607050,152.19360215,0.00043535,120]
[400453666,1767576613762,151.27734686,0.00043535,31]
[400453667,1767576614106,356.89539524,0.00043535,31]
[400453668,1767576614202,882.19182638,0.00043535,31]
[400453669,1767576616833,348.27968805,0.00043535,120]
[400453670,1767576622851,256.14350583,0.00043535,120]
[400453671,1767576622965,165.63118331,0.00043535,120]
[400453672,1767576626828,154.86353884,0.00043535,120]
[400453673,1767576628443,237.33556312,0.00043535,120]